[Event "December 19 Late 2023"]
[Site "https://www.chess.com"]
[Date "2023.12.19"]
[Round "5"]
[White "Harrington, Steve"]
[Black "Su, Dion"]
[Result "0-1"]
[Board "137"]
[TimeControl "180+1"]
[WhiteFideId "2038730"]
[BlackFideId "2029731"]
[WhiteElo "2167"]
[BlackElo "2366"]
[WhiteTeam "USA"]
[BlackTeam "USA"]
[WhiteClock "0:00:03"]
[BlackClock "0:01:31"]

1. e4 {[%clk 0:03:00]}  c5 {[%clk 0:02:57]} 2. c3 {[%clk 0:03:00]}  e6 {[%clk 0:02:57]} 3. d4 {[%clk 0:02:58]}  d5 {[%clk 0:02:57]} 4. e5 {[%clk 0:02:58]}  Nc6 {[%clk 0:02:57]} 5. Bd3 {[%clk 0:02:58]}  Bd7 {[%clk 0:02:56]} 6. Nf3 {[%clk 0:02:57]}  Qb6 {[%clk 0:02:56]} 7. O-O {[%clk 0:02:56]}  cxd4 {[%clk 0:02:55]} 8. cxd4 {[%clk 0:02:57]}  Nxd4 {[%clk 0:02:55]} 9. Nxd4 {[%clk 0:02:57]}  Qxd4 {[%clk 0:02:55]} 10. Nc3 {[%clk 0:02:57]}  a6 {[%clk 0:02:55]} 11. Qe2 {[%clk 0:02:55]}  Ne7 {[%clk 0:02:42]} 12. Rd1 {[%clk 0:02:48]}  Nc6 {[%clk 0:02:31]} 13. Bxa6 {[%clk 0:01:51]}  Qxe5 {[%clk 0:02:20]} 14. Bxb7 {[%clk 0:01:47]}  Qxe2 {[%clk 0:02:18]} 15. Nxe2 {[%clk 0:01:47]}  Rb8 {[%clk 0:02:16]} 16. Bxc6 {[%clk 0:01:33]}  Bxc6 {[%clk 0:02:17]} 17. Nd4 {[%clk 0:01:31]}  Bd7 {[%clk 0:02:16]} 18. a4 {[%clk 0:01:21]}  Bc5 {[%clk 0:01:48]} 19. Kf1 {[%clk 0:00:53]}  O-O {[%clk 0:01:46]} 20. f4 {[%clk 0:00:44]}  f6 {[%clk 0:01:42]} 21. Ke2 {[%clk 0:00:36]}  e5 {[%clk 0:01:40]} 22. Nf3 {[%clk 0:00:29]}  e4 {[%clk 0:01:37]} 23. Nd4 {[%clk 0:00:12]}  Bg4+ {[%clk 0:01:35]} 24. Nf3 {[%clk 0:00:06]}  exf3+ {[%clk 0:01:33]} 25. gxf3 {[%clk 0:00:06]}  Rfe8+ {[%clk 0:01:30]} 26. Kf1 {[%clk 0:00:03]}  Bh3# {[%clk 0:01:31]} 0-1

[Event "December 19 Late 2023"]
[Site "https://www.chess.com"]
[Date "2023.12.19"]
[Round "5"]
[White "Jesusesmifuerza"]
[Black "Kostiukov, Alexandr"]
[Result "1/2-1/2"]
[Board "138"]
[TimeControl "180+1"]
[BlackFideId "14108100"]
[WhiteElo "2160"]
[BlackElo "2112"]
[BlackTeam "UKR"]
[WhiteClock "0:00:45"]
[BlackClock "0:00:07"]

1. e4 {[%clk 0:02:50]}  c5 {[%clk 0:01:28]} 2. Nf3 {[%clk 0:02:46]}  g6 {[%clk 0:01:28]} 3. d4 {[%clk 0:02:46]}  cxd4 {[%clk 0:01:29]} 4. Nxd4 {[%clk 0:02:47]}  Bg7 {[%clk 0:01:29]} 5. Nc3 {[%clk 0:02:47]}  Nc6 {[%clk 0:01:29]} 6. Be3 {[%clk 0:02:48]}  Nf6 {[%clk 0:01:29]} 7. f3 {[%clk 0:02:48]}  O-O {[%clk 0:01:28]} 8. Qd2 {[%clk 0:02:49]}  d5 {[%clk 0:01:28]} 9. O-O-O {[%clk 0:02:49]}  dxe4 {[%clk 0:01:26]} 10. Nxc6 {[%clk 0:02:50]}  Qxd2+ {[%clk 0:01:25]} 11. Bxd2 {[%clk 0:02:50]}  bxc6 {[%clk 0:01:24]} 12. fxe4 {[%clk 0:02:51]}  Be6 {[%clk 0:01:16]} 13. h3 {[%clk 0:02:49]}  Rab8 {[%clk 0:01:11]} 14. b3 {[%clk 0:02:48]}  Rfd8 {[%clk 0:01:08]} 15. Bd3 {[%clk 0:02:48]}  Nh5 {[%clk 0:01:07]} 16. Na4 {[%clk 0:02:45]}  Bd4 {[%clk 0:00:59]} 17. Bc3 {[%clk 0:02:20]}  Nf4 {[%clk 0:00:45]} 18. Bxd4 {[%clk 0:02:05]}  Rxd4 {[%clk 0:00:42]} 19. Rhg1 {[%clk 0:02:06]}  Rbd8 {[%clk 0:00:32]} 20. Nc5 {[%clk 0:02:04]}  Bc8 {[%clk 0:00:31]} 21. Rdf1 {[%clk 0:01:56]}  Ne6 {[%clk 0:00:22]} 22. Nxe6 {[%clk 0:01:47]}  Bxe6 {[%clk 0:00:23]} 23. Rd1 {[%clk 0:01:44]}  c5 {[%clk 0:00:23]} 24. Rge1 {[%clk 0:01:43]}  Kg7 {[%clk 0:00:23]} 25. e5 {[%clk 0:01:11]}  R8d5 {[%clk 0:00:20]} 26. Bc4 {[%clk 0:00:54]}  Rxd1+ {[%clk 0:00:19]} 27. Rxd1 {[%clk 0:00:55]}  Rxd1+ {[%clk 0:00:19]} 28. Kxd1 {[%clk 0:00:55]}  Bxc4 {[%clk 0:00:20]} 29. bxc4 {[%clk 0:00:55]}  g5 {[%clk 0:00:19]} 30. Ke2 {[%clk 0:00:55]}  h5 {[%clk 0:00:18]} 31. Ke3 {[%clk 0:00:55]}  Kg6 {[%clk 0:00:17]} 32. Ke4 {[%clk 0:00:55]}  e6 {[%clk 0:00:16]} 33. g4 {[%clk 0:00:53]}  hxg4 {[%clk 0:00:15]} 34. hxg4 {[%clk 0:00:54]}  f6 {[%clk 0:00:12]} 35. exf6 {[%clk 0:00:53]}  Kxf6 {[%clk 0:00:12]} 36. c3 {[%clk 0:00:50]}  a6 {[%clk 0:00:11]} 37. a3 {[%clk 0:00:49]}  a5 {[%clk 0:00:11]} 38. a4 {[%clk 0:00:49]}  Kf7 {[%clk 0:00:10]} 39. Ke5 {[%clk 0:00:48]}  Ke7 {[%clk 0:00:10]} 40. Ke4 {[%clk 0:00:48]}  Kd6 {[%clk 0:00:08]} 41. Kd3 {[%clk 0:00:45]}  Ke5 {[%clk 0:00:08]} 42. Ke3 {[%clk 0:00:45]}  Kf6 {[%clk 0:00:06]} 43. Ke4 {[%clk 0:00:45]}  Kf7 {[%clk 0:00:07]} 44. Ke5 {[%clk 0:00:45]}  Ke7 {[%clk 0:00:07]} 45. Ke4 {[%clk 0:00:46]}  Kd6 {[%clk 0:00:07]} 46. Kd3 {[%clk 0:00:44]}  Ke5 {[%clk 0:00:07]} 47. Ke3 {[%clk 0:00:45]}  Kd6 {[%clk 0:00:07]} 48. Ke4 {[%clk 0:00:45]}  Kd7 {[%clk 0:00:07]} 49. Ke5 {[%clk 0:00:45]}  Ke7 {[%clk 0:00:07]} 1/2-1/2

[Event "December 19 Late 2023"]
[Site "https://www.chess.com"]
[Date "2023.12.19"]
[Round "5"]
[White "Chess_Star1234"]
[Black "Quirke, Jeffrey"]
[Result "1-0"]
[Board "140"]
[TimeControl "180+1"]
[BlackFideId "2013029"]
[WhiteElo "2353"]
[BlackElo "2157"]
[BlackTeam "USA"]
[WhiteClock "0:01:00"]
[BlackClock "0:00:00"]

1. d4 {[%clk 0:02:40]}  e6 {[%clk 0:02:58]} 2. c4 {[%clk 0:02:41]}  b6 {[%clk 0:02:58]} 3. Nc3 {[%clk 0:02:41]}  Bb4 {[%clk 0:02:58]} 4. Qc2 {[%clk 0:02:41]}  Bb7 {[%clk 0:02:54]} 5. a3 {[%clk 0:02:41]}  Bxc3+ {[%clk 0:02:54]} 6. Qxc3 {[%clk 0:02:42]}  f5 {[%clk 0:02:49]} 7. Nf3 {[%clk 0:02:34]}  Nf6 {[%clk 0:02:49]} 8. g3 {[%clk 0:02:32]}  O-O {[%clk 0:02:48]} 9. Bg2 {[%clk 0:02:32]}  Ne4 {[%clk 0:02:44]} 10. Qc2 {[%clk 0:02:31]}  Nc6 {[%clk 0:02:37]} 11. O-O {[%clk 0:02:27]}  a5 {[%clk 0:02:31]} 12. b3 {[%clk 0:02:23]}  Qe7 {[%clk 0:02:20]} 13. Bb2 {[%clk 0:02:20]}  Nd8 {[%clk 0:02:01]} 14. Rfd1 {[%clk 0:01:57]}  Nf7 {[%clk 0:02:01]} 15. Rac1 {[%clk 0:01:45]}  d6 {[%clk 0:02:00]} 16. Nd2 {[%clk 0:01:30]}  Nfg5 {[%clk 0:01:03]} 17. h4 {[%clk 0:01:27]}  Nxd2 {[%clk 0:00:57]} 18. Bxb7 {[%clk 0:01:23]}  Nh3+ {[%clk 0:00:35]} 19. Kg2 {[%clk 0:01:22]}  Rab8 {[%clk 0:00:13]} 20. Qxd2 {[%clk 0:01:14]}  Rxb7 {[%clk 0:00:10]} 21. Kxh3 {[%clk 0:01:14]}  f4 {[%clk 0:00:10]} 22. g4 {[%clk 0:01:13]}  f3 {[%clk 0:00:09]} 23. e3 {[%clk 0:01:01]}  h5 {[%clk 0:00:00]} 24. Rg1 {[%clk 0:01:00]} 1-0

[Event "December 19 Late 2023"]
[Site "https://www.chess.com"]
[Date "2023.12.19"]
[Round "5"]
[White "Ardila, Oscar Humberto"]
[Black "Saim, Mohamed Ilias"]
[Result "1-0"]
[Board "141"]
[TimeControl "180+1"]
[WhiteFideId "4404742"]
[BlackFideId "7900465"]
[WhiteElo "1915"]
[BlackElo "2063"]
[WhiteTeam "COL"]
[BlackTeam "ALG"]
[WhiteClock "0:00:30"]
[BlackClock "0:00:00"]

1. d4 {[%clk 0:02:58]}  d5 {[%clk 0:02:55]} 2. c4 {[%clk 0:02:57]}  e6 {[%clk 0:02:53]} 3. Nc3 {[%clk 0:02:58]}  Nf6 {[%clk 0:02:53]} 4. Bg5 {[%clk 0:02:58]}  Nbd7 {[%clk 0:02:53]} 5. Nf3 {[%clk 0:02:58]}  c6 {[%clk 0:02:53]} 6. e3 {[%clk 0:02:58]}  Qa5 {[%clk 0:02:53]} 7. Bxf6 {[%clk 0:02:56]}  Nxf6 {[%clk 0:02:52]} 8. Nd2 {[%clk 0:02:57]}  Bd6 {[%clk 0:02:39]} 9. Qc2 {[%clk 0:02:55]}  O-O {[%clk 0:02:30]} 10. Bd3 {[%clk 0:02:53]}  e5 {[%clk 0:02:20]} 11. dxe5 {[%clk 0:02:50]}  Bxe5 {[%clk 0:02:20]} 12. Rc1 {[%clk 0:02:47]}  d4 {[%clk 0:02:08]} 13. exd4 {[%clk 0:02:46]}  Bxd4 {[%clk 0:02:08]} 14. O-O {[%clk 0:02:45]}  Bg4 {[%clk 0:01:42]} 15. Nb3 {[%clk 0:02:44]}  Qd8 {[%clk 0:01:20]} 16. Nxd4 {[%clk 0:02:38]}  Qxd4 {[%clk 0:01:19]} 17. h3 {[%clk 0:02:34]}  Be6 {[%clk 0:01:09]} 18. Rcd1 {[%clk 0:02:34]}  Qh4 {[%clk 0:01:06]} 19. Ne4 {[%clk 0:02:29]}  Nh5 {[%clk 0:00:49]} 20. Ng3 {[%clk 0:02:23]}  Nxg3 {[%clk 0:00:48]} 21. fxg3 {[%clk 0:02:21]}  Qxg3 {[%clk 0:00:44]} 22. Bxh7+ {[%clk 0:02:20]}  Kh8 {[%clk 0:00:44]} 23. Bf5 {[%clk 0:02:04]}  Rad8 {[%clk 0:00:32]} 24. Rxd8 {[%clk 0:02:00]}  Rxd8 {[%clk 0:00:32]} 25. Bxe6 {[%clk 0:01:50]}  fxe6 {[%clk 0:00:33]} 26. Qf2 {[%clk 0:01:36]}  Qg5 {[%clk 0:00:23]} 27. Qf4 {[%clk 0:01:30]}  Qxf4 {[%clk 0:00:19]} 28. Rxf4 {[%clk 0:01:30]}  Rd2 {[%clk 0:00:20]} 29. Rf2 {[%clk 0:01:30]}  Rxf2 {[%clk 0:00:19]} 30. Kxf2 {[%clk 0:01:30]}  Kg8 {[%clk 0:00:20]} 31. Ke3 {[%clk 0:01:30]}  Kf7 {[%clk 0:00:21]} 32. Ke4 {[%clk 0:01:31]}  Kf6 {[%clk 0:00:21]} 33. h4 {[%clk 0:01:26]}  e5 {[%clk 0:00:10]} 34. g4 {[%clk 0:01:25]}  Ke6 {[%clk 0:00:07]} 35. c5 {[%clk 0:01:22]}  Kf6 {[%clk 0:00:07]} 36. g5+ {[%clk 0:01:17]}  Kg6 {[%clk 0:00:03]} 37. Kxe5 {[%clk 0:01:16]}  Kh5 {[%clk 0:00:04]} 38. Kd6 {[%clk 0:01:11]}  Kxh4 {[%clk 0:00:04]} 39. Kc7 {[%clk 0:01:11]}  Kxg5 {[%clk 0:00:05]} 40. Kxb7 {[%clk 0:01:12]}  Kf6 {[%clk 0:00:04]} 41. Kxc6 {[%clk 0:01:13]}  g5 {[%clk 0:00:03]} 42. Kd7 {[%clk 0:01:13]}  g4 {[%clk 0:00:04]} 43. c6 {[%clk 0:01:14]}  g3 {[%clk 0:00:05]} 44. c7 {[%clk 0:01:15]}  g2 {[%clk 0:00:05]} 45. c8=Q {[%clk 0:01:15]}  g1=Q {[%clk 0:00:06]} 46. Qf8+ {[%clk 0:01:03]}  Ke5 {[%clk 0:00:07]} 47. Qd6+ {[%clk 0:01:04]}  Kf5 {[%clk 0:00:07]} 48. Qd5+ {[%clk 0:01:03]}  Kf6 {[%clk 0:00:07]} 49. Qf3+ {[%clk 0:00:47]}  Ke5 {[%clk 0:00:06]} 50. Qe2+ {[%clk 0:00:44]}  Kd5 {[%clk 0:00:06]} 51. Qd2+ {[%clk 0:00:42]}  Ke5 {[%clk 0:00:06]} 52. Qc3+ {[%clk 0:00:42]}  Kd5 {[%clk 0:00:05]} 53. Qa5+ {[%clk 0:00:37]}  Ke4 {[%clk 0:00:05]} 54. Kc6 {[%clk 0:00:32]}  Qc1+ {[%clk 0:00:00]} 55. Qc3 {[%clk 0:00:30]} 1-0

[Event "December 19 Late 2023"]
[Site "https://www.chess.com"]
[Date "2023.12.19"]
[Round "5"]
[White "Ward, Ieuan C"]
[Black "Levine, David"]
[Result "1-0"]
[Board "146"]
[TimeControl "180+1"]
[WhiteFideId "406627"]
[BlackFideId "2011611"]
[WhiteElo "2323"]
[BlackElo "2058"]
[WhiteTeam "ENG"]
[BlackTeam "USA"]
[WhiteClock "0:00:17"]
[BlackClock "0:00:00"]

1. e4 {[%clk 0:03:00]}  e5 {[%clk 0:02:59]} 2. Nf3 {[%clk 0:03:00]}  Nc6 {[%clk 0:02:59]} 3. Bc4 {[%clk 0:03:01]}  Nf6 {[%clk 0:02:58]} 4. d3 {[%clk 0:03:01]}  h6 {[%clk 0:02:58]} 5. c3 {[%clk 0:03:01]}  d6 {[%clk 0:02:58]} 6. O-O {[%clk 0:03:01]}  g5 {[%clk 0:02:57]} 7. Nbd2 {[%clk 0:03:00]}  Bg7 {[%clk 0:02:54]} 8. Re1 {[%clk 0:02:52]}  g4 {[%clk 0:02:44]} 9. Nh4 {[%clk 0:02:49]}  Nxe4 {[%clk 0:02:41]} 10. Nxe4 {[%clk 0:02:48]}  Qxh4 {[%clk 0:02:40]} 11. d4 {[%clk 0:02:48]}  O-O {[%clk 0:02:25]} 12. b4 {[%clk 0:02:33]}  a6 {[%clk 0:02:24]} 13. a4 {[%clk 0:02:31]}  Bf5 {[%clk 0:02:22]} 14. Ng3 {[%clk 0:02:24]}  Bg6 {[%clk 0:02:18]} 15. d5 {[%clk 0:02:18]}  Ne7 {[%clk 0:02:16]} 16. Be2 {[%clk 0:02:18]}  f5 {[%clk 0:02:08]} 17. c4 {[%clk 0:02:11]}  f4 {[%clk 0:02:06]} 18. Nf1 {[%clk 0:02:07]}  f3 {[%clk 0:01:48]} 19. gxf3 {[%clk 0:02:05]}  gxf3 {[%clk 0:01:48]} 20. Bxf3 {[%clk 0:02:01]}  e4 {[%clk 0:01:44]} 21. Ra3 {[%clk 0:01:59]}  exf3 {[%clk 0:01:42]} 22. Rxf3 {[%clk 0:01:53]}  Rxf3 {[%clk 0:01:39]} 23. Qxf3 {[%clk 0:01:54]}  Rf8 {[%clk 0:01:39]} 24. Qg3 {[%clk 0:01:53]}  Qxg3+ {[%clk 0:01:33]} 25. fxg3 {[%clk 0:01:50]}  Bd4+ {[%clk 0:01:24]} 26. Kg2 {[%clk 0:01:49]}  Nf5 {[%clk 0:01:24]} 27. Re4 {[%clk 0:01:36]}  Re8 {[%clk 0:00:56]} 28. Rg4 {[%clk 0:01:25]}  Kh7 {[%clk 0:00:53]} 29. Rf4 {[%clk 0:01:13]}  Be3 {[%clk 0:00:44]} 30. Nxe3 {[%clk 0:01:05]}  Nxe3+ {[%clk 0:00:43]} 31. Kf3 {[%clk 0:01:03]}  Bh5+ {[%clk 0:00:32]} 32. Kf2 {[%clk 0:00:52]}  Nd1+ {[%clk 0:00:28]} 33. Kf1 {[%clk 0:00:49]}  Nc3 {[%clk 0:00:28]} 34. Rh4 {[%clk 0:00:42]}  Bg6 {[%clk 0:00:27]} 35. Bxh6 {[%clk 0:00:39]}  Kg8 {[%clk 0:00:24]} 36. Rg4 {[%clk 0:00:38]}  Kh7 {[%clk 0:00:23]} 37. Rh4 {[%clk 0:00:35]}  Kg8 {[%clk 0:00:21]} 38. Rg4 {[%clk 0:00:35]}  Kf7 {[%clk 0:00:21]} 39. Bd2 {[%clk 0:00:33]}  Ne4 {[%clk 0:00:21]} 40. Be1 {[%clk 0:00:29]}  Nf6 {[%clk 0:00:20]} 41. Rf4 {[%clk 0:00:28]}  Re4 {[%clk 0:00:19]} 42. Rxe4 {[%clk 0:00:29]}  Nxe4 {[%clk 0:00:19]} 43. h4 {[%clk 0:00:27]}  Nf6 {[%clk 0:00:17]} 44. Kf2 {[%clk 0:00:25]}  Bd3 {[%clk 0:00:15]} 45. c5 {[%clk 0:00:22]}  Nxd5 {[%clk 0:00:14]} 46. cxd6 {[%clk 0:00:22]}  cxd6 {[%clk 0:00:14]} 47. g4 {[%clk 0:00:22]}  b5 {[%clk 0:00:11]} 48. axb5 {[%clk 0:00:22]}  axb5 {[%clk 0:00:11]} 49. h5 {[%clk 0:00:20]}  Kf6 {[%clk 0:00:09]} 50. Kg3 {[%clk 0:00:20]}  Be2 {[%clk 0:00:06]} 51. Bd2 {[%clk 0:00:20]}  Nxb4 {[%clk 0:00:01]} 52. Bxb4 {[%clk 0:00:19]}  d5 {[%clk 0:00:00]} 53. Kf4 {[%clk 0:00:17]} 1-0

[Event "December 19 Late 2023"]
[Site "https://www.chess.com"]
[Date "2023.12.19"]
[Round "5"]
[White "UnTucopalaTimba"]
[Black "Antonio, Jorge Carlos"]
[Result "1-0"]
[Board "147"]
[TimeControl "180+1"]
[BlackFideId "113190"]
[WhiteElo "2049"]
[BlackElo "2247"]
[BlackTeam "ARG"]
[WhiteClock "0:02:08"]
[BlackClock "0:02:33"]

1. e4 {[%clk 0:02:30]}  c5 {[%clk 0:02:57]} 2. Nf3 {[%clk 0:02:29]}  e6 {[%clk 0:02:57]} 3. c3 {[%clk 0:02:28]}  Nc6 {[%clk 0:02:56]} 4. d4 {[%clk 0:02:28]}  cxd4 {[%clk 0:02:56]} 5. cxd4 {[%clk 0:02:28]}  d5 {[%clk 0:02:57]} 6. e5 {[%clk 0:02:27]}  Nge7 {[%clk 0:02:56]} 7. Bd3 {[%clk 0:02:26]}  g6 {[%clk 0:02:55]} 8. O-O {[%clk 0:02:25]}  Nf5 {[%clk 0:02:56]} 9. Bxf5 {[%clk 0:02:24]}  gxf5 {[%clk 0:02:55]} 10. Nc3 {[%clk 0:02:23]}  a6 {[%clk 0:02:54]} 11. a3 {[%clk 0:02:21]}  Be7 {[%clk 0:02:53]} 12. b4 {[%clk 0:02:16]}  O-O {[%clk 0:02:51]} 13. Bh6 {[%clk 0:02:14]}  Re8 {[%clk 0:02:50]} 14. Qd2 {[%clk 0:02:13]}  Kh8 {[%clk 0:02:48]} 15. Ng5 {[%clk 0:02:10]}  Bxg5 {[%clk 0:02:43]} 16. Bxg5 {[%clk 0:02:09]}  Qb6 {[%clk 0:02:37]} 17. Bf6+ {[%clk 0:02:09]}  Kg8 {[%clk 0:02:34]} 18. Qg5+ {[%clk 0:02:08]}  Kf8 {[%clk 0:02:33]} 19. Qg7# {[%clk 0:02:08]} 1-0

[Event "December 19 Late 2023"]
[Site "https://www.chess.com"]
[Date "2023.12.19"]
[Round "5"]
[White "Gumugama"]
[Black "Zhukov, Maksim"]
[Result "0-1"]
[Board "150"]
[TimeControl "180+1"]
[BlackFideId "34181790"]
[WhiteElo "2201"]
[BlackElo "1925"]
[BlackTeam "RUS"]
[WhiteClock "0:00:00"]
[BlackClock "0:01:24"]

1. e4 {[%clk 0:03:00]}  c5 {[%clk 0:02:59]} 2. Nf3 {[%clk 0:03:00]}  e6 {[%clk 0:02:58]} 3. d4 {[%clk 0:02:59]}  cxd4 {[%clk 0:02:59]} 4. Nxd4 {[%clk 0:02:59]}  a6 {[%clk 0:03:00]} 5. Bd3 {[%clk 0:02:52]}  Bc5 {[%clk 0:02:57]} 6. Nb3 {[%clk 0:02:52]}  Ba7 {[%clk 0:02:56]} 7. Qe2 {[%clk 0:02:50]}  Nc6 {[%clk 0:02:53]} 8. Be3 {[%clk 0:02:43]}  Bxe3 {[%clk 0:02:53]} 9. Qxe3 {[%clk 0:02:43]}  d6 {[%clk 0:02:54]} 10. c4 {[%clk 0:02:43]}  Nf6 {[%clk 0:02:52]} 11. Nc3 {[%clk 0:02:43]}  O-O {[%clk 0:02:51]} 12. O-O {[%clk 0:02:43]}  h6 {[%clk 0:02:49]} 13. Rac1 {[%clk 0:02:41]}  Ne5 {[%clk 0:02:48]} 14. h3 {[%clk 0:02:33]}  Nxd3 {[%clk 0:02:47]} 15. Qxd3 {[%clk 0:02:33]}  Qe7 {[%clk 0:02:46]} 16. Rfd1 {[%clk 0:02:31]}  Rd8 {[%clk 0:02:44]} 17. e5 {[%clk 0:02:23]}  Ne8 {[%clk 0:02:39]} 18. Ne4 {[%clk 0:02:04]}  d5 {[%clk 0:02:36]} 19. c5 {[%clk 0:02:04]}  Bd7 {[%clk 0:02:30]} 20. Nd6 {[%clk 0:02:04]}  Bc6 {[%clk 0:02:27]} 21. Nd4 {[%clk 0:01:58]}  Qg5 {[%clk 0:02:23]} 22. Qe2 {[%clk 0:01:52]}  Nxd6 {[%clk 0:02:17]} 23. cxd6 {[%clk 0:01:39]}  Rac8 {[%clk 0:02:15]} 24. Rc3 {[%clk 0:01:39]}  Bb5 {[%clk 0:02:07]} 25. Nxb5 {[%clk 0:01:35]}  axb5 {[%clk 0:02:07]} 26. Rxc8 {[%clk 0:00:51]}  Rxc8 {[%clk 0:02:08]} 27. Qxb5 {[%clk 0:00:51]}  Qxe5 {[%clk 0:02:07]} 28. Qxb7 {[%clk 0:00:49]}  Rd8 {[%clk 0:02:04]} 29. d7 {[%clk 0:00:46]}  Qd6 {[%clk 0:01:56]} 30. Qc8 {[%clk 0:00:26]}  Qxd7 {[%clk 0:01:52]} 31. Qxd7 {[%clk 0:00:26]}  Rxd7 {[%clk 0:01:53]} 32. Kf1 {[%clk 0:00:23]}  Ra7 {[%clk 0:01:53]} 33. a3 {[%clk 0:00:22]}  Kf8 {[%clk 0:01:53]} 34. Rc1 {[%clk 0:00:20]}  Ke7 {[%clk 0:01:53]} 35. Ke2 {[%clk 0:00:21]}  Kd6 {[%clk 0:01:53]} 36. Kd3 {[%clk 0:00:20]}  e5 {[%clk 0:01:53]} 37. f3 {[%clk 0:00:20]}  f5 {[%clk 0:01:53]} 38. Rc8 {[%clk 0:00:20]}  Rb7 {[%clk 0:01:48]} 39. b4 {[%clk 0:00:18]}  Ra7 {[%clk 0:01:48]} 40. Rc3 {[%clk 0:00:17]}  d4 {[%clk 0:01:47]} 41. Rb3 {[%clk 0:00:15]}  Kd5 {[%clk 0:01:47]} 42. b5 {[%clk 0:00:15]}  e4+ {[%clk 0:01:46]} 43. fxe4+ {[%clk 0:00:14]}  fxe4+ {[%clk 0:01:47]} 44. Kd2 {[%clk 0:00:14]}  Kc4 {[%clk 0:01:37]} 45. Rb4+ {[%clk 0:00:12]}  Kc5 {[%clk 0:01:36]} 46. b6 {[%clk 0:00:11]}  Rb7 {[%clk 0:01:25]} 47. Ra4 {[%clk 0:00:05]}  Rxb6 {[%clk 0:01:25]} 48. Ra7 {[%clk 0:00:00]}  Rb2+ {[%clk 0:01:24]} 0-1

[Event "December 19 Late 2023"]
[Site "https://www.chess.com"]
[Date "2023.12.19"]
[Round "5"]
[White "Guevara Sanchez, Erick Marvin"]
[Black "Kubatko, Ivan"]
[Result "0-1"]
[Board "154"]
[TimeControl "180+1"]
[WhiteFideId "6700136"]
[BlackFideId "24111473"]
[WhiteElo "2040"]
[BlackElo "2285"]
[WhiteTeam "ESA"]
[BlackTeam "RUS"]
[WhiteClock "0:00:00"]
[BlackClock "0:00:07"]

1. e4 {[%clk 0:03:00]}  d5 {[%clk 0:02:59]} 2. exd5 {[%clk 0:03:00]}  Qxd5 {[%clk 0:03:00]} 3. Nc3 {[%clk 0:02:59]}  Qa5 {[%clk 0:03:00]} 4. d4 {[%clk 0:02:59]}  Nf6 {[%clk 0:03:00]} 5. Bd2 {[%clk 0:02:59]}  c6 {[%clk 0:02:45]} 6. Bc4 {[%clk 0:02:58]}  Bf5 {[%clk 0:02:43]} 7. Nd5 {[%clk 0:02:44]}  Qd8 {[%clk 0:02:42]} 8. Nxf6+ {[%clk 0:02:43]}  gxf6 {[%clk 0:02:40]} 9. Ne2 {[%clk 0:02:32]}  e6 {[%clk 0:02:38]} 10. Be3 {[%clk 0:02:20]}  Nd7 {[%clk 0:02:37]} 11. Ng3 {[%clk 0:02:13]}  Bg6 {[%clk 0:02:36]} 12. Qe2 {[%clk 0:02:10]}  Qa5+ {[%clk 0:02:18]} 13. c3 {[%clk 0:01:54]}  Bd6 {[%clk 0:01:56]} 14. O-O {[%clk 0:01:49]}  h5 {[%clk 0:01:38]} 15. Bd2 {[%clk 0:01:43]}  h4 {[%clk 0:01:23]} 16. Ne4 {[%clk 0:01:41]}  Bxe4 {[%clk 0:01:06]} 17. Qxe4 {[%clk 0:01:40]}  f5 {[%clk 0:01:06]} 18. Qe2 {[%clk 0:01:35]}  O-O-O {[%clk 0:01:06]} 19. h3 {[%clk 0:01:24]}  Qc7 {[%clk 0:00:59]} 20. b4 {[%clk 0:01:21]}  Nb6 {[%clk 0:00:53]} 21. Bb3 {[%clk 0:01:19]}  Bf4 {[%clk 0:00:52]} 22. Be3 {[%clk 0:01:06]}  Rhg8 {[%clk 0:00:39]} 23. Kh1 {[%clk 0:01:02]}  Rg6 {[%clk 0:00:38]} 24. Qf3 {[%clk 0:00:54]}  Bd6 {[%clk 0:00:34]} 25. a4 {[%clk 0:00:46]}  Rdg8 {[%clk 0:00:33]} 26. Rg1 {[%clk 0:00:44]}  Bh2 {[%clk 0:00:33]} 27. Rgf1 {[%clk 0:00:34]}  Rxg2 {[%clk 0:00:31]} 28. Qxg2 {[%clk 0:00:34]}  Rxg2 {[%clk 0:00:32]} 29. Kxg2 {[%clk 0:00:34]}  Bf4 {[%clk 0:00:32]} 30. Rfe1 {[%clk 0:00:29]}  Nd7 {[%clk 0:00:31]} 31. Kf3 {[%clk 0:00:23]}  Bxe3 {[%clk 0:00:30]} 32. Rxe3 {[%clk 0:00:22]}  Nf6 {[%clk 0:00:30]} 33. Rg1 {[%clk 0:00:20]}  Qe7 {[%clk 0:00:17]} 34. Rg7 {[%clk 0:00:18]}  Qf8 {[%clk 0:00:17]} 35. Rg2 {[%clk 0:00:12]}  Kd7 {[%clk 0:00:16]} 36. Re1 {[%clk 0:00:09]}  Qh6 {[%clk 0:00:16]} 37. Re3 {[%clk 0:00:08]}  Qh5+ {[%clk 0:00:15]} 38. Kf4 {[%clk 0:00:07]}  Qh6+ {[%clk 0:00:14]} 39. Kf3 {[%clk 0:00:07]}  Ne4 {[%clk 0:00:12]} 40. Bd1 {[%clk 0:00:04]}  Qh5+ {[%clk 0:00:09]} 41. Kf4 {[%clk 0:00:04]}  Qxd1 {[%clk 0:00:09]} 42. Rg7 {[%clk 0:00:04]}  Ke7 {[%clk 0:00:09]} 43. Rg2 {[%clk 0:00:02]}  Qd2 {[%clk 0:00:08]} 44. Kf3 {[%clk 0:00:00]}  Nxc3 {[%clk 0:00:07]} 0-1

[Event "December 19 Late 2023"]
[Site "https://www.chess.com"]
[Date "2023.12.19"]
[Round "5"]
[White "Martynenko, Ivan"]
[Black "Desideri, Ricardo Maruchi"]
[Result "1-0"]
[Board "159"]
[TimeControl "180+1"]
[WhiteFideId "2053179"]
[BlackFideId "2110440"]
[WhiteElo "2262"]
[BlackElo "1945"]
[WhiteTeam "USA"]
[BlackTeam "BRA"]
[WhiteClock "0:00:20"]
[BlackClock "0:00:59"]

1. e4 {[%clk 0:03:00]}  c5 {[%clk 0:02:57]} 2. Nf3 {[%clk 0:02:59]}  d6 {[%clk 0:02:57]} 3. d4 {[%clk 0:03:00]}  cxd4 {[%clk 0:02:58]} 4. Nxd4 {[%clk 0:03:01]}  Nf6 {[%clk 0:02:58]} 5. Nc3 {[%clk 0:03:01]}  a6 {[%clk 0:02:58]} 6. Bg5 {[%clk 0:03:01]}  Nbd7 {[%clk 0:02:57]} 7. f4 {[%clk 0:03:02]}  h6 {[%clk 0:02:57]} 8. Bxf6 {[%clk 0:03:01]}  Nxf6 {[%clk 0:02:56]} 9. Qf3 {[%clk 0:03:02]}  e6 {[%clk 0:02:54]} 10. O-O-O {[%clk 0:03:01]}  Qc7 {[%clk 0:02:53]} 11. g4 {[%clk 0:03:01]}  Be7 {[%clk 0:02:51]} 12. h4 {[%clk 0:03:01]}  b5 {[%clk 0:02:48]} 13. g5 {[%clk 0:02:59]}  hxg5 {[%clk 0:02:46]} 14. hxg5 {[%clk 0:03:00]}  Rxh1 {[%clk 0:02:45]} 15. Qxh1 {[%clk 0:03:01]}  Ng8 {[%clk 0:02:40]} 16. Qh8 {[%clk 0:02:57]}  Kf8 {[%clk 0:02:39]} 17. Bh3 {[%clk 0:02:57]}  Bd7 {[%clk 0:02:34]} 18. g6 {[%clk 0:02:57]}  Bf6 {[%clk 0:02:13]} 19. gxf7 {[%clk 0:02:12]}  Kxf7 {[%clk 0:02:11]} 20. Qh5+ {[%clk 0:02:13]}  Ke7 {[%clk 0:01:52]} 21. f5 {[%clk 0:00:57]}  b4 {[%clk 0:01:27]} 22. fxe6 {[%clk 0:00:31]}  Bxe6 {[%clk 0:01:08]} 23. Bxe6 {[%clk 0:00:22]}  bxc3 {[%clk 0:01:06]} 24. Qf7+ {[%clk 0:00:22]}  Kd8 {[%clk 0:01:01]} 25. Qxg8+ {[%clk 0:00:22]}  Ke7 {[%clk 0:00:59]} 26. Nf5# {[%clk 0:00:20]} 1-0